fUSD/lending_fUSD_20240517
["ID","MTS","AMOUNT","RATE_DAILY","PERIOD"]
[327282964,1715961042540,-500.0,0.00012796,2]
[327282965,1715961042550,-37191.02857327,0.00012797,2]
[327282974,1715961042783,-473.3383626,0.00012797,2]
[327282975,1715961042800,-301.52429435,0.00012797,2]
[327282976,1715961042813,-173629.11823874,0.00012797,2]
[327282977,1715961042822,-499.95053421,0.00012799,2]
[327282978,1715961042832,-122398.83839141,0.000128,2]
[327282979,1715961042847,-251406.5166116,0.000128,2]
[327282980,1715961042859,-299565.57686502,0.000128,2]
[327282981,1715961042872,-1320.553946,0.000128,2]
[327282982,1715961042883,-31198.76281377,0.000128,2]
[327282983,1715961042959,-4962.79668519,9.642e-05,2]
[327282984,1715961042970,-8569.25961062,0.000128,2]
[327282985,1715961042990,-16225.0,0.000128,2]
[327282986,1715961043001,-33773.5,0.000128,2]
[327282987,1715961043013,-856.03351196,0.000128,2]
[327282988,1715961043026,-1557.71141451,0.000128,2]
[327282989,1715961043038,-9709.12232404,0.000128,2]
[327282990,1715961043050,-1836.93052806,0.000128,2]
[327282995,1715961043156,-4991.73629549,0.000128,2]
[327282997,1715961043167,-428.03097649,0.000128,2]
[327282999,1715961043179,-3379.17580001,0.000128,2]
[327283001,1715961043191,-21819.99370451,0.000128,2]
[327283003,1715961043202,-3252.6,0.000128,2]
[327283006,1715961043214,-7153.60866,0.000128,2]
[327283008,1715961043226,-340.75024006,0.000128,2]
[327283250,1715961045578,-12981.37679998,0.0001212,2]
[327283253,1715961045589,-9384.39677674,0.0001212,2]
[327283255,1715961045598,-500.0,0.00012328,2]
[327283257,1715961045608,-3171.10115318,0.000128,2]
[327283259,1715961045619,-33726.00650358,0.000128,2]
[327283261,1715961045631,-41289.98065039,0.000128,2]
[327283263,1715961045643,-62387.36589282,0.000128,2]
[327283265,1715961045654,-170218.13169002,0.000128,2]
[327283268,1715961045666,-26938.02626756,0.000128,2]
[327283270,1715961045682,-344.4347509,0.000128,2]
[327283273,1715961045702,-50483.45002019,0.000128,2]
[327283276,1715961045716,-7492.9707805,0.000128,2]
[327283278,1715961045728,-548.27237784,0.000128,2]
[327283280,1715961045744,-1347.06,0.000128,2]
[327283283,1715961045756,-5956.55676404,0.000128,2]
[327283285,1715961045767,-610.0,0.000128,2]
[327283304,1715961045947,-3360.0367,0.000128,2]
[327283307,1715961045963,-16266.34667293,0.000128,2]
[327283309,1715961045974,-9595.1640004,0.000128,2]
[327283311,1715961045989,-2273.83887988,0.000128,2]
[327283646,1715961115966,500.0,8.424e-05,2]
[327283647,1715961116323,500.0,8.424e-05,2]
[327283648,1715961117927,500.0,8.424e-05,2]
[327283684,1715961585527,170.68,8.219e-05,2]
[327283685,1715961615272,615.15,8.219e-05,2]
[327283694,1715962019272,152.0,0.000198,30]
[327283748,1715962215910,1000.0,0.00023,120]
[327283749,1715962215937,9036.5589284,0.00023,120]
[327283750,1715962223070,584.39,8.219e-05,2]
[327283754,1715962231776,-817.97346777,9.305e-05,2]
[327283755,1715962231788,-156.07744553,9.306e-05,2]
[327283756,1715962231798,-155.0,9.307e-05,2]
[327283757,1715962231809,-24.85300682,9.31e-05,2]
[327283758,1715962231829,-610.58847277,9.31e-05,2]
[327283759,1715962231843,-290.76513959,9.31e-05,2]
[327283760,1715962231853,-926.20661918,9.311e-05,2]
[327283761,1715962231864,-926.20661918,9.311e-05,2]
[327283762,1715962231875,-150.0,9.317e-05,2]
[327283763,1715962231885,-9211.87391827,9.318e-05,2]
[327283764,1715962231898,-9508.82698156,9.318e-05,2]
[327283765,1715962231918,-857.74670121,9.318e-05,2]
[327283766,1715962231931,-9511.23617097,9.318e-05,2]
[327283767,1715962231943,-4876.88039262,9.318e-05,2]
[327283768,1715962231955,-1400.0,9.318e-05,2]
[327283769,1715962231968,-2657.30624144,9.318e-05,2]
[327283770,1715962231989,-256.0,9.318e-05,2]
[327283771,1715962232012,-992.484,9.318e-05,2]
[327283772,1715962232024,-3118.8,9.318e-05,2]
[327283773,1715962232074,-906.64140515,9.318e-05,2]
[327283774,1715962232084,-164.68289822,9.319e-05,2]
[327283775,1715962232098,-829.59060237,9.319e-05,2]
[327283776,1715962232111,-1356.47305765,9.319e-05,2]
[327283777,1715962232123,-429.8742519,9.319e-05,2]
[327283828,1715962238069,-29759.82656599,9.319e-05,2]
[327283829,1715962238079,-17468.78336426,9.541e-05,2]
[327283830,1715962238088,-3859.7304,9.542e-05,2]
[327283831,1715962238098,-250.0,9.605e-05,2]
[327283832,1715962238107,-12186.02,9.633e-05,2]
[327283833,1715962238116,-2459.22,9.655e-05,2]
[327283834,1715962238125,-200.0,9.722e-05,2]
[327283836,1715962238135,-429.69,9.729e-05,2]
[327283838,1715962238144,-179.2,9.73e-05,2]
[327283840,1715962238154,-1500.0,9.771e-05,2]
[327283842,1715962238164,-297.8,9.872e-05,2]
[327283844,1715962238173,-182.26,9.953e-05,2]
[327283846,1715962238182,-250.0,0.0001001,2]
[327283848,1715962238192,-151.14,0.00010033,2]
[327283850,1715962238201,-151.14,0.00010063,2]
[327283852,1715962238211,-820.8,0.00010079,2]
[327283854,1715962238224,-151.14,0.00010094,2]
[327283856,1715962238233,-151.14,0.00010125,2]
[327283858,1715962238243,-168.67,0.00010145,2]
[327283860,1715962238254,-151.14,0.00010156,2]
[327283862,1715962238265,-151.14,0.00010186,2]
[327283864,1715962238274,-177.29,0.0001021,2]
[327283866,1715962238284,-151.14,0.00010217,2]
[327283868,1715962238294,-151.14,0.00010248,2]
[327283870,1715962238303,-210.0,0.00010249,2]
[327283871,1715962238312,-151.14,0.00010279,2]
[327283874,1715962238322,-151.14,0.00010309,2]
[327283876,1715962238331,-151.14,0.0001034,2]
[327283878,1715962238340,-151.14,0.00010371,2]
[327283879,1715962238350,-151.14,0.00010402,2]
[327283881,1715962238359,-151.14,0.00010432,2]
[327283883,1715962238368,-584.39,0.00010457,2]
[327283886,1715962238378,-151.14,0.00010463,2]
[327283887,1715962238387,-19999.99,0.00010475,2]
[327283889,1715962238397,-151.14,0.00010494,2]
[327283891,1715962238406,-151.14,0.00010525,2]
[327283893,1715962238415,-262.05,0.00010533,2]
[327283895,1715962238424,-151.14,0.00010555,2]
[327283897,1715962238433,-551.6,0.00010567,2]
[327283899,1715962238443,-499.99,0.00010601,2]
[327283901,1715962238452,-256.8087,0.00010776,2]
[327283903,1715962238461,-913.211,0.00010776,2]
[327283905,1715962238471,-210.5486,0.00010848,2]
[327283908,1715962238481,-296.09,0.00010883,2]
[327283909,1715962238491,-179.2,0.00010946,2]
[327283912,1715962238502,-5291.67,0.00010959,2]
[327283913,1715962238512,-7564.01,0.00010959,2]
[327283916,1715962238521,-200.0,0.00011,2]
[327283918,1715962238531,-154.03,0.00011285,2]
[327283919,1715962238540,-154.03,0.00011292,2]
[327283921,1715962238550,-154.03,0.00011299,2]
[327283923,1715962238559,-154.03,0.00011306,2]
[327283925,1715962238568,-154.03,0.00011313,2]
[327283927,1715962238577,-154.03,0.0001132,2]
[327283929,1715962238587,-154.03,0.00011327,2]
[327283931,1715962238596,-154.03,0.00011334,2]
[327283933,1715962238606,-820.8,0.00011338,2]
[327283935,1715962238615,-154.03,0.00011341,2]
[327283937,1715962238625,-1000.0,0.00011417,2]
[327283939,1715962238634,-13482.6879,0.00011496,2]
[327283941,1715962238644,-2500.0,0.00011496,2]
[327283943,1715962238654,-3016.91115052,0.00011517,2]
[327283945,1715962238663,-750.87176025,0.00011518,2]
[327283947,1715962238672,-250.5802228,0.00011518,2]
[327283949,1715962238680,-160.79,0.00011586,2]
[327283951,1715962238690,-77956.105,0.00011596,2]
[327283953,1715962238701,-1000.0,0.00011596,2]
[327283955,1715962238710,-155.19873689,0.00011798,2]
[327283957,1715962238719,-9678.03,0.00011798,2]
[327283959,1715962238728,-497.0264,0.00011798,2]
[327283961,1715962238738,-804.7,0.00011798,2]
[327283963,1715962238748,-500.0,0.00011798,2]
[327283965,1715962238763,-11317.70644439,0.00011898,2]
[327283967,1715962238772,-26414.35118372,0.00011898,2]
[327283969,1715962238783,-11317.70644439,0.00011898,2]
[327283971,1715962238793,-26414.3511837,0.00011898,2]
[327283973,1715962238802,-11317.70644439,0.00011898,2]
[327283975,1715962238811,-934.81634238,0.00011898,2]
[327283977,1715962238824,-25479.53484132,0.00011898,2]
[327283979,1715962238833,-11317.70644439,0.00011898,2]
[327283981,1715962238842,-26414.3511837,0.00011898,2]
[327283983,1715962238851,-11317.70644439,0.00011898,2]
[327283985,1715962238860,-26414.3511837,0.00011898,2]
[327283987,1715962238869,-400.0,0.000119,4]
[327283989,1715962238879,-11317.70644439,0.00011993,2]
[327283991,1715962238888,-26414.3511837,0.00011993,2]
[327283993,1715962238897,-800.0,0.00012,4]
[327283995,1715962238906,-1737.81,0.00012055,2]
[327283997,1715962238915,-1200.0,0.000121,4]
[327283999,1715962238924,-179.2,0.00012162,2]
[327284001,1715962238933,-685.44202007,0.00012199,2]
[327284003,1715962238942,-1600.0,0.000122,4]
[327284005,1715962238951,-11317.70644439,0.0001222,2]
[327284007,1715962238960,-26414.3511837,0.0001222,2]
[327284009,1715962238970,-296.09,0.00012244,2]
[327284011,1715962238978,-2000.0,0.000123,4]
[327284013,1715962238987,-4895.0,0.00012328,2]
[327284015,1715962238998,-463.58299468,0.00012328,2]
[327284017,1715962239010,-500.18746504,0.00012328,2]
[327284019,1715962239020,-548.36139996,0.00012328,2]
[327284021,1715962239029,-500.0,0.00012328,2]
[327284023,1715962239038,-508.21471,0.00012328,2]
[327284025,1715962239048,-500.0,0.00012328,2]
[327284027,1715962239057,-227.19078124,0.00012328,2]
[327284029,1715962239066,-500.0,0.00012328,2]
[327284031,1715962239075,-500.0,0.00012328,2]
[327284033,1715962239084,-500.0,0.00012328,2]
[327284035,1715962239092,-200.81,0.00012328,2]
[327284037,1715962239101,-500.0,0.00012328,2]
[327284039,1715962239110,-500.0,0.00012328,2]
[327284041,1715962239120,-500.0,0.00012328,2]
[327284043,1715962239129,-500.0,0.00012328,2]
[327284045,1715962239139,-500.0,0.00012328,2]
[327284047,1715962239149,-632.52,0.00012328,2]
[327284049,1715962239158,-645.65,0.00012328,2]
[327284051,1715962239167,-467.0377804,0.00012328,2]
[327284053,1715962239177,-500.0,0.00012328,2]
[327284055,1715962239186,-500.0,0.00012328,2]
[327284057,1715962239195,-500.0,0.00012328,2]
[327284059,1715962239204,-506.00895819,0.00012328,2]
[327284060,1715962239218,-500.0,0.00012328,2]
[327284062,1715962239228,-501.44900502,0.00012328,2]
[327284064,1715962239238,-155.0,0.00012328,2]
[327284066,1715962239247,-500.42590588,0.00012328,2]
[327284068,1715962239260,-500.0,0.00012328,2]
[327284071,1715962239270,-500.0,0.00012328,2]
[327284072,1715962239279,-303.13808998,0.00012328,2]
[327284074,1715962239289,-500.0,0.00012328,2]
[327284076,1715962239299,-500.0,0.00012328,2]
[327284078,1715962239308,-334.36920868,0.00012328,2]
[327284079,1715962239318,-364.37212277,0.00012328,2]
[327284080,1715962239327,-500.0,0.00012328,2]
[327284081,1715962239336,-500.0,0.00012328,2]
[327284082,1715962239346,-258.754884,0.00012328,2]
[327284083,1715962239356,-500.0,0.00012328,2]
[327284084,1715962239366,-321.20680437,0.00012328,2]
[327284085,1715962239376,-500.0,0.00012328,2]
[327284086,1715962239385,-500.0,0.00012328,2]
[327284087,1715962239394,-500.0,0.00012328,2]
[327284088,1715962239403,-500.0,0.00012328,2]
[327284089,1715962239412,-500.0,0.00012328,2]
[327284090,1715962239422,-500.0,0.00012328,2]
[327284091,1715962239431,-468.54644668,0.00012328,2]
[327284092,1715962239440,-500.0,0.00012328,2]
[327284093,1715962239450,-500.0,0.00012328,2]
[327284094,1715962239459,-500.0,0.00012328,2]
[327284095,1715962239468,-500.0,0.00012328,2]
[327284096,1715962239478,-500.0,0.00012328,2]
[327284097,1715962239487,-500.0,0.00012328,2]
[327284098,1715962239496,-533.86157514,0.00012328,2]
[327284099,1715962239509,-500.0,0.00012328,2]
[327284100,1715962239518,-502.48786885,0.00012328,2]
[327284101,1715962239528,-559.55350487,0.00012328,2]
[327284102,1715962239537,-500.0,0.00012328,2]
[327284103,1715962239546,-500.0,0.00012328,2]
[327284104,1715962239555,-555.5166128,0.00012328,2]
[327284106,1715962239564,-548.35,0.00012328,2]
[327284108,1715962239574,-500.0,0.00012328,2]
[327284109,1715962239584,-500.0,0.00012328,2]
[327284110,1715962239593,-500.0,0.00012328,2]
[327284111,1715962239603,-500.0,0.00012328,2]
[327284112,1715962239613,-185.69935194,0.00012328,2]
[327284113,1715962239622,-500.0,0.00012328,2]
[327284114,1715962239632,-401.42749512,0.00012328,2]
[327284115,1715962239642,-500.0,0.00012328,2]
[327284116,1715962239651,-155.0,0.00012328,2]
[327284117,1715962239660,-605.03,0.00012328,2]
[327284118,1715962239670,-545.66,0.00012328,2]
[327284120,1715962239679,-500.0,0.00012328,2]
[327284121,1715962239688,-500.0,0.00012328,2]
[327284122,1715962239698,-277.841037,0.00012328,2]
[327284123,1715962239707,-500.0,0.00012328,2]
[327284124,1715962239716,-500.0,0.00012328,2]
[327284125,1715962239727,-590.54,0.00012328,2]
[327284127,1715962239737,-500.0,0.00012328,2]
[327284128,1715962239746,-500.0,0.00012328,2]
[327284129,1715962239758,-500.0,0.00012328,2]
[327284130,1715962239767,-500.0,0.00012328,2]
[327284131,1715962239776,-500.0,0.00012328,2]
[327284132,1715962239785,-500.0,0.00012328,2]
[327284133,1715962239794,-500.0,0.00012328,2]
[327284134,1715962239803,-429.39,0.00012328,2]
[327284136,1715962239812,-425.16,0.00012328,2]
[327284138,1715962239822,-500.0,0.00012328,2]
[327284140,1715962239831,-500.0,0.00012328,2]
[327284142,1715962239841,-574.84,0.00012328,2]
[327284143,1715962239850,-541.81,0.00012328,2]
[327284144,1715962239860,-500.0,0.00012328,2]
[327284145,1715962239869,-500.0,0.00012328,2]
[327284146,1715962239878,-500.0,0.00012328,2]
[327284147,1715962239887,-575.86,0.00012328,2]
[327284148,1715962239896,-500.0,0.00012328,2]
[327284149,1715962239905,-591.29,0.00012328,2]
[327284150,1715962239915,-500.0,0.00012328,2]
[327284151,1715962239925,-587.67337585,0.00012328,2]
[327284152,1715962239934,-500.0,0.00012328,2]
[327284153,1715962239944,-500.0,0.00012328,2]
[327284154,1715962239953,-500.0,0.00012328,2]
[327284155,1715962239962,-150.0,0.00012328,2]
[327284156,1715962239972,-500.0,0.00012328,2]
[327284157,1715962239982,-500.0,0.00012328,2]
[327284158,1715962239991,-586.8,0.00012328,2]
[327284159,1715962240001,-500.0,0.00012328,2]
[327284160,1715962240012,-500.0,0.00012328,2]
[327284161,1715962240021,-504.68104091,0.00012328,2]
[327284162,1715962240031,-328.87716936,0.00012328,2]
[327284163,1715962240041,-520.2473809,0.00012328,2]
[327284164,1715962240051,-500.0,0.00012328,2]
[327284165,1715962240061,-631.57,0.00012328,2]
[327284166,1715962240071,-500.0,0.00012328,2]
[327284167,1715962240080,-596.53987169,0.00012328,2]
[327284168,1715962240090,-500.0,0.00012328,2]
[327284169,1715962240100,-500.0,0.00012328,2]
[327284170,1715962240109,-500.0,0.00012328,2]
[327284171,1715962240119,-500.0,0.00012328,2]
[327284172,1715962240128,-500.0,0.00012328,2]
[327284173,1715962240138,-306.63572824,0.00012328,2]
[327284174,1715962240147,-441.95708341,0.00012328,2]
[327284175,1715962240156,-500.0,0.00012328,2]
[327284176,1715962240166,-537.03498854,0.00012328,2]
[327284177,1715962240175,-500.0,0.00012328,2]
[327284178,1715962240184,-500.0,0.00012328,2]
[327284179,1715962240194,-500.0,0.00012328,2]
[327284180,1715962240203,-500.0,0.00012328,2]
[327284181,1715962240213,-159.48714444,0.00012328,2]
[327284182,1715962240227,-500.0,0.00012328,2]
[327284183,1715962240236,-601.11,0.00012328,2]
[327284184,1715962240245,-316.74,0.00012328,2]
[327284185,1715962240256,-500.0,0.00012328,2]
[327284186,1715962240266,-500.0,0.00012328,2]
[327284187,1715962240276,-500.0,0.00012328,2]
[327284188,1715962240286,-500.0,0.00012328,2]
[327284189,1715962240296,-500.0,0.00012328,2]
[327284190,1715962240308,-233.02,0.00012328,2]
[327284191,1715962240318,-500.0,0.00012328,2]
[327284192,1715962240328,-500.0,0.00012328,2]
[327284193,1715962240338,-500.0,0.00012328,2]
[327284194,1715962240348,-500.0,0.00012328,2]
[327284195,1715962240358,-500.0,0.00012328,2]
[327284196,1715962240367,-500.0,0.00012328,2]
[327284197,1715962240377,-500.0,0.00012328,2]
[327284198,1715962240386,-500.0,0.00012328,2]
[327284199,1715962240396,-500.0,0.00012328,2]
[327284200,1715962240407,-500.0,0.00012328,2]
[327284201,1715962240417,-500.0,0.00012328,2]
[327284202,1715962240426,-1414.54,0.00012328,2]
[327284203,1715962240437,-500.0,0.00012328,2]
[327284204,1715962240446,-470.89482384,0.00012328,2]
[327284205,1715962240456,-500.0,0.00012328,2]
[327284206,1715962240467,-500.0,0.00012328,2]
[327284207,1715962240476,-648.69,0.00012328,2]
[327284208,1715962240486,-500.0,0.00012328,2]
[327284209,1715962240496,-500.0,0.00012328,2]
[327284210,1715962240509,-500.0,0.00012328,2]
[327284211,1715962240520,-500.0,0.00012328,2]
[327284212,1715962240529,-500.0,0.00012328,2]
[327284213,1715962240539,-500.0,0.00012328,2]
[327284214,1715962240549,-500.0,0.00012328,2]
[327284215,1715962240559,-500.0,0.00012328,2]
[327284216,1715962240569,-500.0,0.00012328,2]
[327284217,1715962240578,-500.0,0.00012328,2]
[327284218,1715962240588,-500.0,0.00012328,2]
[327284219,1715962240598,-500.0,0.00012328,2]
[327284220,1715962240608,-500.0,0.00012328,2]
[327284221,1715962240618,-365.14745924,0.00012328,2]
[327284222,1715962240629,-577.23,0.00012328,2]
[327284223,1715962240639,-500.0,0.00012328,2]
[327284224,1715962240649,-544.10678373,0.00012328,2]
[327284225,1715962240659,-500.0,0.00012328,2]
[327284226,1715962240670,-500.0,0.00012328,2]
[327284227,1715962240680,-613.40579082,0.00012328,2]
[327284228,1715962240690,-500.0,0.00012328,2]
[327284229,1715962240700,-500.0,0.00012328,2]
[327284230,1715962240711,-527.90770136,0.00012328,2]
[327284231,1715962240721,-500.0,0.00012328,2]
[327284232,1715962240731,-500.0,0.00012328,2]
[327284233,1715962240740,-500.0,0.00012328,2]
[327284234,1715962240750,-500.0,0.00012328,2]
[327284235,1715962240762,-500.0,0.00012328,2]
[327284236,1715962240771,-500.0,0.00012328,2]
[327284237,1715962240780,-435.14858709,0.00012328,2]
[327284238,1715962240790,-500.0,0.00012328,2]
[327284239,1715962240799,-500.0,0.00012328,2]
[327284240,1715962240808,-500.0,0.00012328,2]
[327284241,1715962240819,-500.0,0.00012328,2]
[327284242,1715962240829,-500.0,0.00012328,2]
[327284243,1715962240839,-500.0,0.00012328,2]
[327284244,1715962240850,-848.0,0.00012328,2]
[327284245,1715962240859,-848.0,0.00012328,2]
[327284246,1715962240869,-250.80152881,0.00012328,2]
[327284247,1715962240879,-500.0,0.00012328,2]
[327284248,1715962240889,-500.0,0.00012328,2]
[327284249,1715962240898,-500.0,0.00012328,2]
[327284250,1715962240908,-329.99476,0.00012328,2]
[327284251,1715962240918,-504.45315212,0.00012328,2]
[327284252,1715962240928,-500.0,0.00012328,2]
[327284253,1715962240937,-500.0,0.00012328,2]
[327284254,1715962240947,-500.0,0.00012328,2]
[327284255,1715962240957,-500.0,0.00012328,2]
[327284256,1715962240968,-527.86709569,0.00012328,2]
[327284257,1715962240977,-500.0,0.00012328,2]
[327284258,1715962240986,-500.0,0.00012328,2]
[327284259,1715962240996,-349.32,0.00012328,2]
[327284260,1715962241157,-500.0,0.00012328,2]
[327284261,1715962241175,-162.2442746,0.00012328,2]
[327284262,1715962241185,-500.0,0.00012328,2]
[327284263,1715962241194,-500.0,0.00012328,2]
[327284264,1715962241204,-500.0,0.00012328,2]
[327284265,1715962241214,-517.7419707,0.00012328,2]
[327284266,1715962241228,-500.0,0.00012328,2]
[327284267,1715962241239,-500.0,0.00012328,2]
[327284268,1715962241251,-500.0,0.00012328,2]
[327284269,1715962241263,-500.0,0.00012328,2]
[327284270,1715962241272,-500.0,0.00012328,2]
[327284271,1715962241282,-500.0,0.00012328,2]
[327284272,1715962241291,-500.0,0.00012328,2]
[327284273,1715962241303,-500.0,0.00012328,2]
[327284274,1715962241314,-500.0,0.00012328,2]
[327284275,1715962241323,-500.0,0.00012328,2]
[327284276,1715962241332,-500.0,0.00012328,2]
[327284277,1715962241342,-600.45,0.00012328,2]
[327284278,1715962241351,-500.0,0.00012328,2]
[327284279,1715962241363,-500.0,0.00012328,2]
[327284280,1715962241373,-500.0,0.00012328,2]
[327284281,1715962241382,-500.0,0.00012328,2]
[327284282,1715962241392,-500.0,0.00012328,2]
[327284283,1715962241401,-500.0,0.00012328,2]
[327284284,1715962241411,-3000.0,0.00012328,2]
[327284285,1715962241421,-500.0,0.00012328,2]
[327284286,1715962241431,-500.0,0.00012328,2]
[327284287,1715962241440,-500.0,0.00012328,2]
[327284288,1715962241450,-500.0,0.00012328,2]
[327284289,1715962241459,-500.0,0.00012328,2]
[327284290,1715962241469,-500.0,0.00012328,2]
[327284291,1715962241479,-500.0,0.00012328,2]
[327284292,1715962241489,-500.0,0.00012328,2]
[327284293,1715962241498,-500.0,0.00012328,2]
[327284294,1715962241510,-500.0,0.00012328,2]
[327284295,1715962241520,-500.0,0.00012328,2]
[327284296,1715962241530,-500.0,0.00012328,2]
[327284297,1715962241540,-500.0,0.00012328,2]
[327284298,1715962241550,-500.0,0.00012328,2]
[327284299,1715962241559,-500.0,0.00012328,2]
[327284300,1715962241569,-500.0,0.00012328,2]
[327284301,1715962241579,-500.0,0.00012328,2]
[327284302,1715962241589,-500.0,0.00012328,2]
[327284303,1715962241599,-500.0,0.00012328,2]
[327284304,1715962241609,-500.0,0.00012328,2]
[327284305,1715962241618,-500.0,0.00012328,2]
[327284306,1715962241628,-500.0,0.00012328,2]
[327284307,1715962241639,-500.0,0.00012328,2]
[327284308,1715962241648,-500.0,0.00012328,2]
[327284309,1715962241658,-500.0,0.00012328,2]
[327284310,1715962241667,-500.0,0.00012328,2]
[327284311,1715962241677,-500.0,0.00012328,2]
[327284312,1715962241687,-500.0,0.00012328,2]
[327284313,1715962241697,-500.0,0.00012328,2]
[327284314,1715962241707,-1057.87,0.00012328,2]
[327284315,1715962241717,-1057.87,0.00012328,2]
[327284316,1715962241727,-500.0,0.00012328,2]
[327284317,1715962241737,-500.0,0.00012328,2]
[327284318,1715962241747,-611.85752579,0.00012328,2]
[327284319,1715962241757,-500.0,0.00012328,2]
[327284320,1715962241766,-500.0,0.00012328,2]
[327284321,1715962241775,-500.0,0.00012328,2]
[327284322,1715962241785,-500.0,0.00012328,2]
[327284323,1715962241795,-500.0,0.00012328,2]
[327284324,1715962241804,-500.0,0.00012328,2]
[327284325,1715962241814,-500.0,0.00012328,2]
[327284326,1715962241823,-500.0,0.00012328,2]
[327284327,1715962241833,-500.0,0.00012328,2]
[327284328,1715962241843,-500.0,0.00012328,2]
[327284329,1715962241852,-500.0,0.00012328,2]
[327284330,1715962241861,-500.0,0.00012328,2]
[327284331,1715962241871,-500.0,0.00012328,2]
[327284332,1715962241880,-500.0,0.00012328,2]
[327284333,1715962241890,-500.0,0.00012328,2]
[327284334,1715962241899,-500.0,0.00012328,2]
[327284335,1715962241908,-500.0,0.00012328,2]
[327284336,1715962241918,-500.0,0.00012328,2]
[327284337,1715962241927,-632.63,0.00012328,2]
[327284338,1715962241938,-500.0,0.00012328,2]
[327284339,1715962241947,-500.0,0.00012328,2]
[327284340,1715962241957,-500.0,0.00012328,2]
[327284341,1715962241966,-500.0,0.00012328,2]
[327284342,1715962241976,-500.0,0.00012328,2]
[327284343,1715962241986,-500.0,0.00012328,2]
[327284344,1715962241995,-500.0,0.00012328,2]
[327284345,1715962242006,-500.0,0.00012328,2]
[327284346,1715962242015,-208.74,0.00012328,2]
[327284347,1715962242024,-580.4,0.00012328,2]
[327284348,1715962242033,-500.0,0.00012328,2]
[327284349,1715962242043,-500.0,0.00012328,2]
[327284350,1715962242052,-500.0,0.00012328,2]
[327284351,1715962242061,-500.0,0.00012328,2]
[327284352,1715962242070,-500.0,0.00012328,2]
[327284353,1715962242080,-500.0,0.00012328,2]
[327284354,1715962242089,-500.0,0.00012328,2]
[327284355,1715962242100,-500.0,0.00012328,2]
[327284356,1715962242110,-500.0,0.00012328,2]
[327284357,1715962242119,-500.0,0.00012328,2]
[327284358,1715962242129,-500.0,0.00012328,2]
[327284359,1715962242138,-333.0564537,0.00012328,2]
[327284360,1715962242148,-500.0,0.00012328,2]
[327284361,1715962242158,-500.0,0.00012328,2]
[327284362,1715962242167,-538.95999007,0.00012328,2]
[327284363,1715962242176,-500.0,0.00012328,2]
[327284364,1715962242186,-430.10304818,0.00012328,2]
[327284365,1715962242195,-500.0,0.00012328,2]
[327284366,1715962242204,-500.0,0.00012328,2]
[327284367,1715962242217,-500.0,0.00012328,2]
[327284368,1715962242226,-174.75285166,0.00012328,2]
[327284369,1715962242235,-500.0,0.00012328,2]
[327284370,1715962242244,-579.27,0.00012328,2]
[327284371,1715962242257,-500.0,0.00012328,2]
[327284372,1715962242267,-300.0,0.00012328,2]
[327284373,1715962242276,-500.0,0.00012328,2]
[327284374,1715962242285,-500.0,0.00012328,2]
[327284375,1715962242294,-500.0,0.00012328,2]
[327284376,1715962242305,-500.0,0.00012328,2]
[327284377,1715962242315,-500.0,0.00012328,2]